[Event "Late-Titled-Tuesday-Blitz-April-16-2024"]
[Site "Chess.com"]
[Date "2024.04.16"]
[Round "5"]
[White "BeanScreen"]
[Black "Kiborg95"]
[Result "0-1"]
[WhiteElo "2658"]
[BlackElo "2856"]
[TimeControl "180+1"]
[EndTime "14:51:23 PDT"]
[Termination "Kiborg95 won by resignation"]

1. e4 {[%clk 0:03:00.9]} 1... d6 {[%clk 0:03:00.9]} 2. d4 {[%clk 0:03:00.9]}
2... Nf6 {[%clk 0:03:01.6]} 3. Nc3 {[%clk 0:03:01.3]} 3... Nbd7 {[%clk
0:03:02.2]} 4. Nf3 {[%clk 0:03:00.8]} 4... e5 {[%clk 0:03:02.7]} 5. Bc4 {[%clk
0:03:01]} 5... Be7 {[%clk 0:03:03.4]} 6. O-O {[%clk 0:03:00.6]} 6... O-O {[%clk
0:03:04.2]} 7. a4 {[%clk 0:03:00.1]} 7... c6 {[%clk 0:03:05]} 8. h3 {[%clk
0:02:59.7]} 8... h6 {[%clk 0:03:05.5]} 9. Re1 {[%clk 0:02:59.6]} 9... Re8 {[%clk
0:03:06.2]} 10. a5 {[%clk 0:02:37]} 10... Qc7 {[%clk 0:03:04.4]} 11. Nh4 {[%clk
0:02:22.3]} 11... exd4 {[%clk 0:02:58.2]} 12. Qxd4 {[%clk 0:02:23.2]} 12... Ne5
{[%clk 0:02:58.8]} 13. Bb3 {[%clk 0:02:16.4]} 13... Nh7 {[%clk 0:02:55.2]} 14.
Nf5 {[%clk 0:01:57.2]} 14... Bxf5 {[%clk 0:02:55.5]} 15. exf5 {[%clk 0:01:57.7]}
15... Bf6 {[%clk 0:02:54.7]} 16. Qd1 {[%clk 0:01:50.4]} 16... d5 {[%clk
0:02:52.5]} 17. Bf4 {[%clk 0:01:38.8]} 17... Qd7 {[%clk 0:02:38.6]} 18. Qh5
{[%clk 0:01:19.7]} 18... Re7 {[%clk 0:02:29.7]} 19. Be3 {[%clk 0:01:16.7]} 19...
Rae8 {[%clk 0:02:08.4]} 20. Rad1 {[%clk 0:01:11.6]} 20... Qc7 {[%clk 0:02:04.5]}
21. a6 {[%clk 0:01:09.7]} 21... b5 {[%clk 0:02:00.6]} 22. Kf1 {[%clk 0:00:48.7]}
22... Nc4 {[%clk 0:01:59.6]} 23. Bxc4 {[%clk 0:00:45.3]} 23... bxc4 {[%clk
0:01:59.9]} 24. g3 {[%clk 0:00:24.1]} 24... d4 {[%clk 0:01:53.4]} 25. Bf4 {[%clk
0:00:23.8]} 25... Rxe1+ {[%clk 0:01:54]} 26. Rxe1 {[%clk 0:00:24.1]} 26... Rxe1+
{[%clk 0:01:54.8]} 27. Kxe1 {[%clk 0:00:25]} 27... Qa5 {[%clk 0:01:55.4]} 28.
Qe2 {[%clk 0:00:15.6]} 28... dxc3 {[%clk 0:01:50.3]} 29. Qe8+ {[%clk 0:00:15.4]}
29... Nf8 {[%clk 0:01:50.9]} 30. Bd6 {[%clk 0:00:15.2]} 30... cxb2+ {[%clk
0:01:51.1]} 31. Ke2 {[%clk 0:00:14.9]} 31... b1=Q {[%clk 0:01:48.3]} 32. Qxf8+
{[%clk 0:00:14.4]} 32... Kh7 {[%clk 0:01:49]} 33. Qxf7 {[%clk 0:00:13.3]} 33...
Qxc2+ {[%clk 0:01:48.5]} 34. Kf3 {[%clk 0:00:12.7]} 34... Qaxf5+ {[%clk
0:01:47.5]} 35. Kg2 {[%clk 0:00:12.3]} 35... Qfxf2+ {[%clk 0:01:47.8]} 0-1

[Event "Late-Titled-Tuesday-Blitz-April-16-2024"]
[Site "Chess.com"]
[Date "2024.04.16"]
[Round "5"]
[White "SpeedofLight0"]
[Black "ReadySkate"]
[Result "1-0"]
[WhiteElo "3049"]
[BlackElo "2616"]
[TimeControl "180+1"]
[EndTime "14:51:33 PDT"]
[Termination "SpeedofLight0 won by resignation"]

1. d4 {[%clk 0:03:00.9]} 1... Nf6 {[%clk 0:02:59.9]} 2. Nc3 {[%clk 0:03:00.7]}
2... d5 {[%clk 0:02:59.6]} 3. Bf4 {[%clk 0:03:00.9]} 3... g6 {[%clk 0:02:59.7]}
4. Qd2 {[%clk 0:02:59.4]} 4... Bg7 {[%clk 0:02:59.7]} 5. Bh6 {[%clk 0:02:59.6]}
5... O-O {[%clk 0:03:00.3]} 6. h4 {[%clk 0:02:59.6]} 6... c5 {[%clk 0:03:00.4]}
7. Bxg7 {[%clk 0:02:19.3]} 7... Kxg7 {[%clk 0:03:01.3]} 8. h5 {[%clk 0:02:19]}
8... cxd4 {[%clk 0:02:58.8]} 9. Qxd4 {[%clk 0:02:19.2]} 9... Nc6 {[%clk
0:02:57.4]} 10. Qh4 {[%clk 0:02:17.9]} 10... Qa5 {[%clk 0:02:45.3]} 11. e3
{[%clk 0:02:03.3]} 11... Qb4 {[%clk 0:01:50.3]} 12. h6+ {[%clk 0:01:55.8]} 12...
Kg8 {[%clk 0:01:49.4]} 13. O-O-O {[%clk 0:01:56.7]} 13... Qxh4 {[%clk
0:01:47.8]} 14. Rxh4 {[%clk 0:01:57.6]} 14... Be6 {[%clk 0:01:48.5]} 15. Nf3
{[%clk 0:01:56.8]} 15... Rfd8 {[%clk 0:01:47.3]} 16. Ng5 {[%clk 0:01:55.3]}
16... Bg4 {[%clk 0:01:45.5]} 17. f3 {[%clk 0:01:51.4]} 17... Bf5 {[%clk
0:01:44.5]} 18. g4 {[%clk 0:01:14.6]} 18... Bc8 {[%clk 0:01:42.5]} 19. Rh2
{[%clk 0:01:09.2]} 19... e6 {[%clk 0:01:41.4]} 20. Rhd2 {[%clk 0:01:07.8]} 20...
b6 {[%clk 0:01:39.1]} 21. e4 {[%clk 0:00:49.4]} 21... d4 {[%clk 0:01:38.3]} 22.
Bb5 {[%clk 0:00:49.5]} 22... Bb7 {[%clk 0:01:15.1]} 23. Bxc6 {[%clk 0:00:49]}
23... Bxc6 {[%clk 0:01:16]} 24. Rxd4 {[%clk 0:00:49.5]} 24... Rxd4 {[%clk
0:01:16]} 25. Rxd4 {[%clk 0:00:50.4]} 25... Kf8 {[%clk 0:01:13.7]} 26. e5 {[%clk
0:00:48.3]} 26... Ng8 {[%clk 0:01:12.8]} 27. Nxh7+ {[%clk 0:00:47.1]} 27... Ke7
{[%clk 0:01:13.4]} 28. g5 {[%clk 0:00:47]} 28... Bxf3 {[%clk 0:01:13]} 29. Nf6
{[%clk 0:00:44.7]} 29... Kf8 {[%clk 0:01:00.1]} 30. h7 {[%clk 0:00:41.9]} 1-0

[Event "Late-Titled-Tuesday-Blitz-April-16-2024"]
[Site "Chess.com"]
[Date "2024.04.16"]
[Round "5"]
[White "Sjakkerntobi"]
[Black "Ramil_Faizrakhmanov"]
[Result "0-1"]
[WhiteElo "2509"]
[BlackElo "2887"]
[TimeControl "180+1"]
[EndTime "14:51:33 PDT"]
[Termination "Ramil_Faizrakhmanov won by resignation"]

1. e4 {[%clk 0:03:00.9]} 1... c6 {[%clk 0:02:59.5]} 2. Nc3 {[%clk 0:03:00.8]}
2... d5 {[%clk 0:03:00.4]} 3. Nf3 {[%clk 0:03:01.7]} 3... Bg4 {[%clk 0:03:00.6]}
4. h3 {[%clk 0:03:01.7]} 4... Bxf3 {[%clk 0:03:01.1]} 5. Qxf3 {[%clk 0:03:02.6]}
5... e6 {[%clk 0:03:01.2]} 6. d3 {[%clk 0:03:02.9]} 6... Nd7 {[%clk 0:02:57.5]}
7. Bd2 {[%clk 0:03:03]} 7... Bb4 {[%clk 0:02:57.4]} 8. g4 {[%clk 0:02:57.1]}
8... d4 {[%clk 0:02:56]} 9. Nb1 {[%clk 0:02:57.1]} 9... Qb6 {[%clk 0:02:56.2]}
10. Qg3 {[%clk 0:02:36.9]} 10... Ne7 {[%clk 0:02:49.2]} 11. f4 {[%clk
0:02:36.5]} 11... Bxd2+ {[%clk 0:02:46.4]} 12. Nxd2 {[%clk 0:02:37.1]} 12...
Qxb2 {[%clk 0:02:45.6]} 13. Rb1 {[%clk 0:02:35.7]} 13... Qxa2 {[%clk 0:02:37.9]}
14. Rxb7 {[%clk 0:02:23.9]} 14... Qxc2 {[%clk 0:02:37.7]} 15. Nc4 {[%clk
0:02:14.7]} 15... Nc8 {[%clk 0:02:06.8]} 16. f5 {[%clk 0:02:02.3]} 16... Nc5
{[%clk 0:01:53.5]} 17. Rxf7 {[%clk 0:01:31.7]} 17... Kxf7 {[%clk 0:01:17.6]} 18.
Qc7+ {[%clk 0:01:29]} 18... Ne7 {[%clk 0:01:06.9]} 19. Ne5+ {[%clk 0:01:23.4]}
19... Kf8 {[%clk 0:01:06.1]} 20. fxe6 {[%clk 0:01:00.8]} 20... Nxe6 {[%clk
0:00:51.8]} 21. Nd7+ {[%clk 0:01:00.1]} 21... Ke8 {[%clk 0:00:50.3]} 22. Qd6
{[%clk 0:00:46.8]} 22... Qc1+ {[%clk 0:00:47.8]} 23. Kf2 {[%clk 0:00:44.5]}
23... Qf4+ {[%clk 0:00:45.7]} 24. Qxf4 {[%clk 0:00:43.1]} 24... Nxf4 {[%clk
0:00:46.6]} 0-1

[Event "Late-Titled-Tuesday-Blitz-April-16-2024"]
[Site "Chess.com"]
[Date "2024.04.16"]
[Round "5"]
[White "PawnEatingZombie"]
[Black "RantomOpening"]
[Result "0-1"]
[WhiteElo "2259"]
[BlackElo "2534"]
[TimeControl "180+1"]
[EndTime "14:51:36 PDT"]
[Termination "RantomOpening won on time"]

1. e4 {[%clk 0:02:03.8]} 1... g6 {[%clk 0:03:00.9]} 2. d4 {[%clk 0:01:59.7]}
2... Bg7 {[%clk 0:03:01]} 3. c3 {[%clk 0:02:00.3]} 3... d6 {[%clk 0:03:01.4]} 4.
Bd3 {[%clk 0:02:00.6]} 4... Nf6 {[%clk 0:03:01.4]} 5. Nf3 {[%clk 0:02:00.6]}
5... O-O {[%clk 0:03:01.6]} 6. O-O {[%clk 0:02:01.1]} 6... b6 {[%clk 0:03:01.7]}
7. Re1 {[%clk 0:02:01.2]} 7... Bb7 {[%clk 0:03:02.2]} 8. a4 {[%clk 0:02:01.3]}
8... c5 {[%clk 0:03:02.2]} 9. h3 {[%clk 0:01:54.9]} 9... Nc6 {[%clk 0:03:01.1]}
10. b3 {[%clk 0:01:50.8]} 10... Qc7 {[%clk 0:03:00.9]} 11. Bb2 {[%clk
0:01:50.7]} 11... e5 {[%clk 0:03:01.1]} 12. dxe5 {[%clk 0:01:46.4]} 12... dxe5
{[%clk 0:03:02]} 13. Nbd2 {[%clk 0:01:42]} 13... Rad8 {[%clk 0:03:01.9]} 14. Qe2
{[%clk 0:01:42]} 14... Nh5 {[%clk 0:02:58]} 15. g3 {[%clk 0:01:42.5]} 15... Bc8
{[%clk 0:02:53.5]} 16. Kg2 {[%clk 0:01:38]} 16... Qd7 {[%clk 0:02:52.7]} 17. Bc4
{[%clk 0:01:23.5]} 17... Qxh3+ {[%clk 0:02:52.6]} 18. Kg1 {[%clk 0:01:23.5]}
18... Bg4 {[%clk 0:02:51.6]} 19. Qf1 {[%clk 0:01:21.1]} 19... Qxf1+ {[%clk
0:02:43.7]} 20. Kxf1 {[%clk 0:01:20.9]} 20... Na5 {[%clk 0:02:43.4]} 21. Bd5
{[%clk 0:01:17]} 21... Nf6 {[%clk 0:02:39.5]} 22. b4 {[%clk 0:00:57]} 22... cxb4
{[%clk 0:02:34.7]} 23. cxb4 {[%clk 0:00:57]} 23... Nxd5 {[%clk 0:02:34.2]} 24.
exd5 {[%clk 0:00:53.8]} 24... Nc4 {[%clk 0:02:28.5]} 25. Nxc4 {[%clk 0:00:51.7]}
25... Bxf3 {[%clk 0:02:28.2]} 26. d6 {[%clk 0:00:50.1]} 26... Bd5 {[%clk
0:02:16.7]} 27. Nxe5 {[%clk 0:00:47.6]} 27... Rxd6 {[%clk 0:02:16.7]} 28. b5
{[%clk 0:00:25.3]} 28... Rfd8 {[%clk 0:02:14.5]} 29. Kg1 {[%clk 0:00:13.7]}
29... Bb3 {[%clk 0:02:05.4]} 30. f4 {[%clk 0:00:10.4]} 30... Rd2 {[%clk
0:02:04.3]} 31. Bc3 {[%clk 0:00:10.9]} 31... Rc2 {[%clk 0:02:04.3]} 32. Bb4
{[%clk 0:00:10.8]} 32... h5 {[%clk 0:01:54.7]} 33. a5 {[%clk 0:00:10.8]} 33...
Rd4 {[%clk 0:01:53.7]} 34. Be7 {[%clk 0:00:03.4]} 34... Rdd2 {[%clk 0:01:52.6]}
35. Bh4 {[%clk 0:00:02.9]} 35... Rg2+ {[%clk 0:01:52.5]} 36. Kh1 {[%clk
0:00:03.1]} 36... Rh2+ {[%clk 0:01:52.6]} 37. Kg1 {[%clk 0:00:03.8]} 37... Rcg2+
{[%clk 0:01:52.6]} 38. Kf1 {[%clk 0:00:03.5]} 38... Bxe5 {[%clk 0:01:52.8]} 0-1

[Event "Late-Titled-Tuesday-Blitz-April-16-2024"]
[Site "Chess.com"]
[Date "2024.04.16"]
[Round "5"]
[White "JaackCamel"]
[Black "teresin05"]
[Result "1-0"]
[WhiteElo "2237"]
[BlackElo "2322"]
[TimeControl "180+1"]
[EndTime "14:51:38 PDT"]
[Termination "JaackCamel won by resignation"]

1. d4 {[%clk 0:03:00.9]} 1... d5 {[%clk 0:02:41.4]} 2. c4 {[%clk 0:03:00.1]}
2... c6 {[%clk 0:02:40.1]} 3. cxd5 {[%clk 0:02:59.7]} 3... cxd5 {[%clk 0:02:41]}
4. Bf4 {[%clk 0:02:59.5]} 4... Nc6 {[%clk 0:02:41.3]} 5. e3 {[%clk 0:02:59]}
5... Nf6 {[%clk 0:02:39.1]} 6. Nc3 {[%clk 0:02:58.1]} 6... a6 {[%clk 0:02:39.4]}
7. Bd3 {[%clk 0:02:57.2]} 7... h6 {[%clk 0:02:32.2]} 8. h3 {[%clk 0:02:56.3]}
8... e6 {[%clk 0:02:29.1]} 9. Rc1 {[%clk 0:02:49.6]} 9... Be7 {[%clk 0:02:19.2]}
10. Nf3 {[%clk 0:02:49.2]} 10... O-O {[%clk 0:02:19.4]} 11. O-O {[%clk
0:02:49.1]} 11... Bd7 {[%clk 0:02:14.2]} 12. Na4 {[%clk 0:02:45.6]} 12... Nb4
{[%clk 0:02:12.9]} 13. Bb1 {[%clk 0:02:41.2]} 13... Qa5 {[%clk 0:02:08.9]} 14.
Nc5 {[%clk 0:02:34.1]} 14... Bb5 {[%clk 0:01:59.2]} 15. Re1 {[%clk 0:02:19.7]}
15... Bc6 {[%clk 0:01:35]} 16. a3 {[%clk 0:02:11.9]} 16... Bxc5 {[%clk
0:01:19.3]} 17. Rxc5 {[%clk 0:02:07.4]} 17... Qb6 {[%clk 0:01:17.9]} 18. axb4
{[%clk 0:02:06.1]} 18... Qxb4 {[%clk 0:01:18.8]} 19. Qd2 {[%clk 0:01:59.8]}
19... Qb6 {[%clk 0:01:14.3]} 20. Rec1 {[%clk 0:01:58]} 20... a5 {[%clk
0:01:06.8]} 21. Ne5 {[%clk 0:01:55.9]} 21... Rfc8 {[%clk 0:01:02.8]} 22. Qc3
{[%clk 0:01:46.6]} 22... Ra6 {[%clk 0:00:13.4]} 23. Bd3 {[%clk 0:01:44.2]} 23...
Ra7 {[%clk 0:00:13.5]} 24. Nxc6 {[%clk 0:01:40.6]} 24... bxc6 {[%clk 0:00:13.5]}
25. Rxc6 {[%clk 0:01:38.6]} 25... Rxc6 {[%clk 0:00:08.2]} 26. Qxc6 {[%clk
0:01:38.3]} 26... Qd8 {[%clk 0:00:08.6]} 27. Qc8 {[%clk 0:01:31.4]} 27... Qe8
{[%clk 0:00:04]} 28. Qxe8+ {[%clk 0:01:29.8]} 28... Nxe8 {[%clk 0:00:04.9]} 29.
Rc8 {[%clk 0:01:29.3]} 29... Kf8 {[%clk 0:00:05]} 30. Bd6+ {[%clk 0:01:29.4]}
1-0

[Event "Late-Titled-Tuesday-Blitz-April-16-2024"]
[Site "Chess.com"]
[Date "2024.04.16"]
[Round "5"]
[White "yuriydovzik"]
[Black "kripri"]
[Result "0-1"]
[WhiteElo "2137"]
[BlackElo "2406"]
[TimeControl "180+1"]
[EndTime "14:51:41 PDT"]
[Termination "kripri won on time"]

1. b3 {[%clk 0:02:53.7]} 1... g6 {[%clk 0:01:56.8]} 2. Bb2 {[%clk 0:02:52.8]}
2... Nf6 {[%clk 0:01:57.3]} 3. e4 {[%clk 0:02:45.8]} 3... Bg7 {[%clk 0:01:56.5]}
4. e5 {[%clk 0:02:40.1]} 4... Nd5 {[%clk 0:01:55.6]} 5. c4 {[%clk 0:02:29.2]}
5... Nf4 {[%clk 0:01:48.2]} 6. g3 {[%clk 0:02:12.1]} 6... Ne6 {[%clk 0:01:47.7]}
7. d4 {[%clk 0:02:09.6]} 7... d5 {[%clk 0:01:45.3]} 8. c5 {[%clk 0:01:51.9]}
8... O-O {[%clk 0:01:40.7]} 9. Ne2 {[%clk 0:01:44.6]} 9... f6 {[%clk 0:01:35.7]}
10. Bg2 {[%clk 0:01:28.3]} 10... fxe5 {[%clk 0:01:23.9]} 11. dxe5 {[%clk
0:01:27.2]} 11... c6 {[%clk 0:01:23.5]} 12. b4 {[%clk 0:01:10.8]} 12... a5
{[%clk 0:01:22.8]} 13. a3 {[%clk 0:01:04.4]} 13... Na6 {[%clk 0:01:20.1]} 14.
Qd2 {[%clk 0:00:44.4]} 14... Qc7 {[%clk 0:01:15.3]} 15. f4 {[%clk 0:00:38.5]}
15... b6 {[%clk 0:01:12.4]} 16. O-O {[%clk 0:00:15]} 16... bxc5 {[%clk
0:01:04.4]} 17. bxc5 {[%clk 0:00:13.7]} 17... Naxc5 {[%clk 0:01:05.3]} 18. Qc2
{[%clk 0:00:03]} 18... Ba6 {[%clk 0:01:01.9]} 0-1

[Event "Late-Titled-Tuesday-Blitz-April-16-2024"]
[Site "Chess.com"]
[Date "2024.04.16"]
[Round "5"]
[White "amanmuhammethommadov"]
[Black "GlavkonVVS"]
[Result "1-0"]
[WhiteElo "2812"]
[BlackElo "2606"]
[TimeControl "180+1"]
[EndTime "14:51:59 PDT"]
[Termination "amanmuhammethommadov won by resignation"]

1. e4 {[%clk 0:02:59.5]} 1... Nf6 {[%clk 0:03:00.2]} 2. e5 {[%clk 0:02:59.6]}
2... Nd5 {[%clk 0:03:00.4]} 3. Nc3 {[%clk 0:03:00.3]} 3... Nb6 {[%clk
0:03:00.4]} 4. Nf3 {[%clk 0:03:00.6]} 4... d6 {[%clk 0:03:00.7]} 5. d4 {[%clk
0:03:00.6]} 5... Bg4 {[%clk 0:03:00.8]} 6. h3 {[%clk 0:03:01]} 6... Bh5 {[%clk
0:02:59.8]} 7. Bd3 {[%clk 0:03:00]} 7... e6 {[%clk 0:02:59.8]} 8. Bf4 {[%clk
0:02:55.4]} 8... d5 {[%clk 0:02:57.8]} 9. Ne2 {[%clk 0:02:53.9]} 9... c5 {[%clk
0:02:57.5]} 10. c3 {[%clk 0:02:54.1]} 10... Nc6 {[%clk 0:02:57.8]} 11. a3 {[%clk
0:02:53.9]} 11... Rc8 {[%clk 0:02:51.9]} 12. Be3 {[%clk 0:02:52.2]} 12... cxd4
{[%clk 0:02:42.1]} 13. cxd4 {[%clk 0:02:51.3]} 13... Be7 {[%clk 0:02:41.5]} 14.
Nf4 {[%clk 0:02:51.5]} 14... Bg6 {[%clk 0:02:41.2]} 15. Nxg6 {[%clk 0:02:51.4]}
15... hxg6 {[%clk 0:02:41.7]} 16. O-O {[%clk 0:02:41.1]} 16... Na5 {[%clk
0:02:38.1]} 17. Bb5+ {[%clk 0:02:32.8]} 17... Kf8 {[%clk 0:02:37.8]} 18. Bd3
{[%clk 0:02:22.3]} 18... Nac4 {[%clk 0:02:37]} 19. Bc1 {[%clk 0:02:22.5]} 19...
Nd7 {[%clk 0:02:32]} 20. b3 {[%clk 0:02:22]} 20... Ncb6 {[%clk 0:02:31.7]} 21.
Bd2 {[%clk 0:02:21.2]} 21... Nb8 {[%clk 0:02:31]} 22. Qe2 {[%clk 0:02:19.2]}
22... Nc6 {[%clk 0:02:31.1]} 23. Rfc1 {[%clk 0:02:19.5]} 23... g5 {[%clk
0:02:21]} 24. b4 {[%clk 0:02:18.1]} 24... g6 {[%clk 0:02:18.9]} 25. b5 {[%clk
0:02:17.5]} 25... Nb8 {[%clk 0:02:18.7]} 26. Rxc8 {[%clk 0:02:16.4]} 26... Nxc8
{[%clk 0:02:17.4]} 27. a4 {[%clk 0:02:16.4]} 27... Kg7 {[%clk 0:02:17]} 28. Qe1
{[%clk 0:02:09.5]} 28... Nb6 {[%clk 0:02:16.2]} 29. Qc1 {[%clk 0:02:09.5]} 29...
Rh5 {[%clk 0:02:07.6]} 30. a5 {[%clk 0:02:07.6]} 30... N6d7 {[%clk 0:01:57.5]}
31. Ra2 {[%clk 0:02:04.5]} 31... a6 {[%clk 0:01:54.8]} 32. bxa6 {[%clk
0:02:03.4]} 32... Nxa6 {[%clk 0:01:52]} 33. Rc2 {[%clk 0:02:03.4]} 33... Nb4
{[%clk 0:01:49.9]} 34. Rc8 {[%clk 0:01:41.2]} 34... Qxa5 {[%clk 0:01:39.2]} 35.
Bb1 {[%clk 0:01:25.4]} 35... Nb6 {[%clk 0:01:15.6]} 36. Rc7 {[%clk 0:01:20.1]}
36... Bd8 {[%clk 0:01:10.3]} 37. Rxb7 {[%clk 0:01:20.3]} 37... Qa6 {[%clk
0:01:08.9]} 38. Rb8 {[%clk 0:01:18.2]} 38... Be7 {[%clk 0:00:58.6]} 39. Qc7
{[%clk 0:01:17.6]} 39... Qa1 {[%clk 0:00:50.1]} 40. Qxe7 {[%clk 0:01:16]} 40...
Qxb1+ {[%clk 0:00:49.8]} 41. Kh2 {[%clk 0:01:16.4]} 41... Qf5 {[%clk 0:00:34.3]}
42. Qf8+ {[%clk 0:01:15.3]} 1-0

[Event "Late-Titled-Tuesday-Blitz-April-16-2024"]
[Site "Chess.com"]
[Date "2024.04.16"]
[Round "5"]
[White "marcodobrikov"]
[Black "TanitoluwaAps116"]
[Result "1-0"]
[WhiteElo "2599"]
[BlackElo "2786"]
[TimeControl "180+1"]
[EndTime "14:52:03 PDT"]
[Termination "marcodobrikov won by resignation"]

1. d3 {[%clk 0:03:00.6]} 1... e5 {[%clk 0:02:57.7]} 2. Nf3 {[%clk 0:02:58.6]}
2... Nc6 {[%clk 0:02:56.8]} 3. e4 {[%clk 0:02:59.3]} 3... Nf6 {[%clk 0:02:56.2]}
4. Be2 {[%clk 0:02:59.5]} 4... d5 {[%clk 0:02:56.4]} 5. Nbd2 {[%clk 0:02:59.3]}
5... Bc5 {[%clk 0:02:55.4]} 6. O-O {[%clk 0:02:59.7]} 6... O-O {[%clk
0:02:55.6]} 7. c3 {[%clk 0:03:00]} 7... h6 {[%clk 0:02:52.8]} 8. b4 {[%clk
0:03:00]} 8... Bd6 {[%clk 0:02:42]} 9. a3 {[%clk 0:02:52.4]} 9... Be6 {[%clk
0:02:35.9]} 10. Qc2 {[%clk 0:02:45.9]} 10... a6 {[%clk 0:02:30.7]} 11. c4 {[%clk
0:02:40.2]} 11... dxe4 {[%clk 0:02:25.5]} 12. dxe4 {[%clk 0:02:36]} 12... Nh5
{[%clk 0:01:48]} 13. Rd1 {[%clk 0:02:29.5]} 13... Nf4 {[%clk 0:01:44.2]} 14. Bf1
{[%clk 0:02:29.8]} 14... Qf6 {[%clk 0:01:44]} 15. Bb2 {[%clk 0:02:22.9]} 15...
g5 {[%clk 0:01:30.7]} 16. c5 {[%clk 0:02:16.5]} 16... Be7 {[%clk 0:01:28.8]} 17.
Nc4 {[%clk 0:02:17.3]} 17... Bxc4 {[%clk 0:00:51.9]} 18. Bxc4 {[%clk 0:02:18.2]}
18... g4 {[%clk 0:00:52.1]} 19. Nd2 {[%clk 0:02:14.5]} 19... Rad8 {[%clk
0:00:40.6]} 20. Nf1 {[%clk 0:02:14.7]} 20... Nd4 {[%clk 0:00:28.7]} 21. Bxd4
{[%clk 0:02:10.1]} 21... Rxd4 {[%clk 0:00:29.6]} 22. Rxd4 {[%clk 0:02:10]} 22...
exd4 {[%clk 0:00:30.5]} 23. Rd1 {[%clk 0:02:08.6]} 23... Rd8 {[%clk 0:00:29.8]}
24. Ng3 {[%clk 0:02:08]} 24... h5 {[%clk 0:00:26.4]} 25. Nf5 {[%clk 0:02:07.4]}
25... Qe5 {[%clk 0:00:23.9]} 26. Nh6+ {[%clk 0:02:03.1]} 26... Kg7 {[%clk
0:00:17.7]} 27. Nxf7 {[%clk 0:02:04]} 27... Qf6 {[%clk 0:00:17.2]} 28. Nxd8
{[%clk 0:02:02.8]} 28... Bxd8 {[%clk 0:00:18.1]} 29. Qd2 {[%clk 0:02:00.3]}
29... b5 {[%clk 0:00:03.9]} 30. cxb6 {[%clk 0:01:53.7]} 30... cxb6 {[%clk
0:00:04.4]} 31. Qxd4 {[%clk 0:01:54.2]} 31... Be7 {[%clk 0:00:03.3]} 32. Qxf6+
{[%clk 0:01:49.8]} 32... Bxf6 {[%clk 0:00:03.2]} 33. g3 {[%clk 0:01:48.8]} 33...
Nh3+ {[%clk 0:00:03.1]} 34. Kg2 {[%clk 0:01:49.5]} 34... h4 {[%clk 0:00:03.4]}
35. Be6 {[%clk 0:01:48.5]} 35... hxg3 {[%clk 0:00:03.7]} 36. hxg3 {[%clk
0:01:48.5]} 36... Ng5 {[%clk 0:00:04.2]} 37. Rd7+ {[%clk 0:01:47.4]} 37... Kf8
{[%clk 0:00:03.7]} 38. Bxg4 {[%clk 0:01:43.4]} 38... Nxe4 {[%clk 0:00:03.7]} 39.
Ra7 {[%clk 0:01:42.5]} 39... a5 {[%clk 0:00:02.2]} 40. bxa5 {[%clk 0:01:42.2]}
40... bxa5 {[%clk 0:00:03.1]} 41. Rxa5 {[%clk 0:01:43.1]} 41... Nd6 {[%clk
0:00:02.4]} 42. Ra6 {[%clk 0:01:43.2]} 42... Be5 {[%clk 0:00:02.2]} 43. f4
{[%clk 0:01:42.8]} 1-0

[Event "Late-Titled-Tuesday-Blitz-April-16-2024"]
[Site "Chess.com"]
[Date "2024.04.16"]
[Round "5"]
[White "Zavgorodniy_Sergiy"]
[Black "IsuruAlahakoon"]
[Result "1-0"]
[WhiteElo "2622"]
[BlackElo "2435"]
[TimeControl "180+1"]
[EndTime "14:52:05 PDT"]
[Termination "Zavgorodniy_Sergiy won by resignation"]

1. d4 {[%clk 0:03:00.9]} 1... d5 {[%clk 0:02:59.7]} 2. c4 {[%clk 0:03:00.8]}
2... e6 {[%clk 0:02:59.8]} 3. Nf3 {[%clk 0:03:00.6]} 3... Nf6 {[%clk 0:02:59.7]}
4. e3 {[%clk 0:03:00.7]} 4... c6 {[%clk 0:02:50.8]} 5. Nbd2 {[%clk 0:03:00.2]}
5... Bd6 {[%clk 0:02:50.6]} 6. Bd3 {[%clk 0:03:00.4]} 6... O-O {[%clk
0:02:50.2]} 7. O-O {[%clk 0:03:00.6]} 7... Nbd7 {[%clk 0:02:49.1]} 8. e4 {[%clk
0:03:00.7]} 8... dxc4 {[%clk 0:02:43.3]} 9. Nxc4 {[%clk 0:03:00.3]} 9... Be7
{[%clk 0:02:42.4]} 10. Bg5 {[%clk 0:03:00.1]} 10... h6 {[%clk 0:02:38.2]} 11.
Bh4 {[%clk 0:02:59.7]} 11... c5 {[%clk 0:02:32.3]} 12. e5 {[%clk 0:02:54.6]}
12... Nd5 {[%clk 0:02:26.3]} 13. Bxe7 {[%clk 0:02:54]} 13... Qxe7 {[%clk
0:02:08.4]} 14. dxc5 {[%clk 0:02:53.8]} 14... Nxc5 {[%clk 0:02:05.7]} 15. Nd6
{[%clk 0:02:53.9]} 15... Nxd3 {[%clk 0:02:02.3]} 16. Qxd3 {[%clk 0:02:54.8]}
16... Bd7 {[%clk 0:01:48.4]} 17. Nd4 {[%clk 0:02:46]} 17... f6 {[%clk
0:01:32.2]} 18. Qe4 {[%clk 0:02:33.1]} 18... f5 {[%clk 0:01:26.4]} 19. N4xf5
{[%clk 0:02:23.2]} 19... Qg5 {[%clk 0:01:16.6]} 20. Ng3 {[%clk 0:02:15.5]} 20...
Bc6 {[%clk 0:01:14.5]} 21. Qd4 {[%clk 0:02:04.1]} 21... Nf4 {[%clk 0:01:10.8]}
22. Nde4 {[%clk 0:01:59.1]} 22... Qg6 {[%clk 0:01:01.6]} 23. f3 {[%clk
0:01:47.6]} 23... h5 {[%clk 0:00:53]} 24. Nf6+ {[%clk 0:01:37.2]} 24... Rxf6
{[%clk 0:00:32.9]} 25. exf6 {[%clk 0:01:36.9]} 25... Qxg3 {[%clk 0:00:24.9]} 26.
hxg3 {[%clk 0:01:28.4]} 26... Ne2+ {[%clk 0:00:24.3]} 27. Kf2 {[%clk 0:01:28.8]}
27... Nxd4 {[%clk 0:00:24.6]} 28. fxg7 {[%clk 0:01:29.1]} 28... Kxg7 {[%clk
0:00:24.8]} 29. Rad1 {[%clk 0:01:27.6]} 29... e5 {[%clk 0:00:24.1]} 30. Rfe1
{[%clk 0:01:25.9]} 30... Kf6 {[%clk 0:00:19]} 31. f4 {[%clk 0:01:24.3]} 31...
Nf5 {[%clk 0:00:11.5]} 32. Rxe5 {[%clk 0:01:22.1]} 32... Rg8 {[%clk 0:00:10.6]}
33. Rd3 {[%clk 0:01:19.1]} 33... Nxg3 {[%clk 0:00:09.6]} 34. Rxg3 {[%clk
0:01:17.5]} 1-0